bitfinex/quotes_BTCUSD_20220115
["timestamp","ask_amount","ask_price","bid_price","bid_amount"]
[1642263494501,6.876e-05,43389.0,43388.0,0.58349619]
[1642263496246,6.876e-05,43389.0,43387.0,0.53889619]
[1642263497737,6.876e-05,43389.0,43387.0,0.72382098]
[1642263497937,6.876e-05,43389.0,43388.0,1.23653305]
[1642263498137,6.876e-05,43389.0,43388.0,1.05]
[1642263498937,6.876e-05,43389.0,43388.0,1.30562098]
[1642263499237,6.876e-05,43389.0,43388.0,1.05]
[1642263501085,6.876e-05,43389.0,43387.0,0.78021832]
[1642263501290,6.876e-05,43389.0,43387.0,0.73521832]
[1642263502084,6.876e-05,43389.0,43387.0,0.055]
[1642263502484,6.876e-05,43389.0,43386.0,0.68021832]
[1642263503287,6.876e-05,43389.0,43386.0,0.78021832]
[1642263503488,6.876e-05,43389.0,43387.0,1.66626595]
[1642263503736,6.876e-05,43389.0,43387.0,1.76626595]
[1642263504137,6.876e-05,43389.0,43387.0,0.78021832]
[1642263505538,6.876e-05,43389.0,43387.0,0.68021832]
[1642263506238,6.876e-05,43389.0,43387.0,0.63571832]
[1642263506544,6.876e-05,43389.0,43387.0,0.5827619]
[1642263507139,6.876e-05,43389.0,43388.0,0.5827619]
[1642263507991,6.876e-05,43389.0,43385.0,0.48014181]
[1642263508191,6.876e-05,43389.0,43385.0,0.58014181]
[1642263508395,6.876e-05,43389.0,43385.0,0.3952]
[1642263508593,6.876e-05,43389.0,43385.0,0.1]
[1642263508792,0.0008002,43389.0,43386.0,0.98605225]
[1642263509394,0.0008002,43389.0,43388.0,0.58239926]
[1642263509794,6.876e-05,43389.0,43388.0,0.58239926]
[1642263511339,6.876e-05,43389.0,43387.0,0.53749926]
[1642263512438,6.876e-05,43389.0,43382.0,0.00093359]
[1642263513239,6.876e-05,43389.0,43383.0,0.98605225]
[1642263513439,0.00073141,43388.0,43383.0,0.98605225]
[1642263513638,0.00073141,43388.0,43383.0,1.08605225]
[1642263514038,0.00073141,43388.0,43385.0,0.66656883]
[1642263514444,6.876e-05,43389.0,43385.0,0.66656883]
[1642263514883,0.00080019,43389.0,43387.0,2.63749965]
[1642263515085,0.00080019,43389.0,43385.0,0.66656883]
[1642263515682,6.876e-05,43389.0,43385.0,0.66656883]
[1642263515986,0.00128065,43387.0,43384.0,0.98605225]
[1642263516381,0.00128065,43387.0,43384.0,0.94135225]
[1642263516581,0.00128065,43387.0,43382.0,0.00093359]
[1642263516988,0.00128065,43387.0,43381.0,6.876e-05]
[1642263517181,0.00128065,43387.0,43382.0,0.00093356]
[1642263518181,0.00128065,43387.0,43378.0,0.47104345]
[1642263518382,0.00128065,43387.0,43382.0,0.00093356]
[1642263519241,0.00128065,43387.0,43380.0,0.057616]
[1642263519439,0.00128065,43387.0,43382.0,0.00093356]
[1642263519645,0.00128065,43387.0,43385.0,0.58424427]
[1642263519843,0.00073138,43388.0,43385.0,0.58424427]
[1642263520640,6.876e-05,43389.0,43385.0,0.58424427]
[1642263520839,0.00080019,43389.0,43385.0,0.58424427]
[1642263521539,0.00080019,43389.0,43386.0,0.53934427]
[1642263521739,6.876e-05,43389.0,43386.0,0.53934427]
[1642263521940,0.0008002,43389.0,43386.0,0.53934427]
[1642263522985,6.876e-05,43389.0,43386.0,0.53934427]
[1642263524391,6.876e-05,43389.0,43384.0,0.68133102]
[1642263524590,6.876e-05,43389.0,43382.0,0.68226461]
[1642263525190,6.876e-05,43389.0,43383.0,0.68133102]
[1642263525591,0.00073141,43388.0,43383.0,0.68133102]
[1642263526437,6.876e-05,43389.0,43383.0,0.63663102]
[1642263526836,0.00073141,43388.0,43382.0,0.00093357]
[1642263527641,6.876e-05,43389.0,43380.0,0.24317401]
[1642263528037,0.0007314,43388.0,43382.0,0.00093357]
[1642263528239,0.0007314,43388.0,43382.0,0.05854315]
[1642263528439,0.0007314,43388.0,43383.0,0.19057114]
[1642263529039,0.00073141,43388.0,43383.0,0.19057114]
[1642263529240,0.00073141,43388.0,43382.0,0.00093357]
[1642263529889,0.00073141,43388.0,43386.0,0.58563689]
[1642263530088,6.876e-05,43389.0,43386.0,0.58563689]
[1642263530291,0.0008002,43389.0,43386.0,0.58563689]
[1642263531293,6.876e-05,43389.0,43386.0,0.54103689]
[1642263531494,0.00073144,43390.0,43388.0,0.54103689]
[1642263531892,0.00073144,43390.0,43384.0,0.057611]
[1642263532294,0.00073144,43390.0,43385.0,6.876e-05]
[1642263532495,0.33204399,43393.0,43385.0,6.876e-05]
[1642263532695,0.00073144,43390.0,43385.0,0.98112457]
[1642263533096,6.876e-05,43389.0,43385.0,0.98112457]
[1642263533295,6.876e-05,43389.0,43382.0,0.25404437]
[1642263533495,6.876e-05,43389.0,43383.0,0.18530976]
[1642263533938,0.00073142,43388.0,43383.0,0.18530976]
[1642263534140,0.00073142,43388.0,43386.0,0.68289405]
[1642263534741,0.00073142,43388.0,43385.0,0.68289405]
[1642263534943,6.876e-05,43389.0,43385.0,0.68289405]
[1642263534944,0.28143912,43389.0,43385.0,0.68289405]
[1642263535142,0.00080019,43389.0,43385.0,0.68289405]
[1642263535343,0.00080019,43389.0,43384.0,0.68289405]
[1642263536143,6.876e-05,43389.0,43384.0,0.68289405]
[1642263536343,0.00080019,43389.0,43384.0,0.63809405]
[1642263536543,0.00080019,43389.0,43383.0,0.63809405]
[1642263537381,0.18959558,43389.0,43383.0,0.63809405]
[1642263537585,0.00073142,43388.0,43383.0,0.63809405]
[1642263537981,0.00073142,43388.0,43385.0,2.35050095]
[1642263538581,6.876e-05,43389.0,43385.0,2.35050095]
[1642263538781,0.00080019,43389.0,43383.0,0.63809405]
[1642263539182,0.00080019,43389.0,43382.0,0.00093358]
[1642263539883,6.876e-05,43389.0,43382.0,0.00093357]
[1642263540083,0.00073141,43388.0,43386.0,0.58683558]
[1642263540786,0.00073141,43388.0,43387.0,0.58683558]
[1642263540982,6.876e-05,43389.0,43387.0,0.58683558]
[1642263541233,0.0008002,43389.0,43387.0,0.58683558]
[1642263541433,0.0008002,43389.0,43387.0,0.54213558]
[1642263542234,6.876e-05,43389.0,43387.0,0.54213558]
[1642263543637,6.876e-05,43389.0,43382.0,0.00093359]
[1642263544438,6.876e-05,43389.0,43384.0,0.6846585]
[1642263544887,0.00073141,43388.0,43384.0,0.6846585]
[1642263545690,6.876e-05,43389.0,43384.0,0.6846585]
[1642263546092,0.00073142,43388.0,43383.0,0.6846585]
[1642263546489,0.00073142,43388.0,43383.0,0.6398585]
[1642263546891,6.876e-05,43389.0,43383.0,0.6398585]
[1642263547091,6.876e-05,43389.0,43382.0,0.00093357]
[1642263547292,0.00073141,43388.0,43382.0,0.00093357]
[1642263548091,6.876e-05,43389.0,43381.0,0.6456162]
[1642263548291,0.0007314,43388.0,43382.0,0.00093357]
[1642263548835,0.0007314,43388.0,43383.0,0.98608082]
[1642263549036,0.0007314,43388.0,43384.0,0.17933754]
[1642263549242,0.0007314,43388.0,43385.0,0.057608]
[1642263549439,6.876e-05,43389.0,43386.0,0.3315449]
[1642263549638,0.00073142,43388.0,43387.0,1.23188881]
[1642263550140,0.00073142,43388.0,43387.0,1.37818881]
[1642263550340,0.00073142,43388.0,43387.0,1.96467152]
[1642263550541,6.876e-05,43389.0,43387.0,1.96467152]
[1642263550740,6.876e-05,43389.0,43388.0,1.38084937]
[1642263551041,6.876e-05,43389.0,43388.0,1.42714937]
[1642263551439,6.876e-05,43389.0,43388.0,0.18234937]
[1642263551640,6.876e-05,43389.0,43388.0,0.0463]
[1642263551941,6.876e-05,43389.0,43388.0,0.5463]
[1642263552143,6.876e-05,43389.0,43388.0,1.71204722]
[1642263552382,6.876e-05,43389.0,43388.0,1.53238082]
[1642263554587,6.876e-05,43389.0,43388.0,2.21608624]
[1642263555186,6.876e-05,43389.0,43388.0,0.5458]
[1642263555786,6.876e-05,43389.0,43388.0,0.0458]
[1642263556443,6.876e-05,43389.0,43388.0,0.58764553]
[1642263559543,6.876e-05,43389.0,43388.0,0.58644553]
[1642263561103,6.876e-05,43389.0,43387.0,0.58644553]
[1642263561506,0.26567914,43389.0,43387.0,0.54174553]
[1642263562502,0.26567914,43389.0,43385.0,0.68420542]
[1642263562704,0.26567914,43389.0,43383.0,0.68420542]
[1642263563944,0.00073142,43388.0,43384.0,0.68420542]
[1642263564942,0.26563056,43389.0,43384.0,0.68420542]
[1642263565841,2.018e-05,43389.0,43384.0,0.68420542]
[1642263566541,2.018e-05,43389.0,43384.0,0.63950542]
[1642263566743,2.018e-05,43389.0,43383.0,0.63950542]
[1642263567143,2.018e-05,43389.0,43384.0,6.577e-05]
[1642263567592,2.018e-05,43389.0,43384.0,0.0009993]
[1642263568491,0.3057546,43387.0,43384.0,6.577e-05]
[1642263568694,0.3057546,43387.0,43384.0,0.0009993]
[1642263568893,0.3007546,43387.0,43384.0,0.0009993]
[1642263569693,0.3007546,43387.0,43384.0,6.577e-05]
[1642263570095,0.29996787,43387.0,43383.0,0.00093354]
[1642263570294,0.16873905,43386.0,43383.0,0.00093354]
[1642263570894,0.16873905,43386.0,43381.0,0.00011734]
[1642263571158,0.00121901,43385.0,43381.0,0.00011734]
[1642263571350,0.375018,43384.0,43382.0,0.00093355]
[1642263571659,0.45400626,43381.0,43374.0,0.76284313]
[1642263571849,0.45400626,43381.0,43380.0,0.58821373]
[1642263572155,0.85003885,43381.0,43380.0,0.58821373]
[1642263572351,1.22505685,43381.0,43380.0,0.58821373]
[1642263572650,0.7925792,43381.0,43380.0,0.58821373]
[1642263572849,0.7722892,43381.0,43380.0,0.58821373]
[1642263573049,0.7722892,43381.0,43375.0,0.58821373]
[1642263573248,0.19883724,43380.0,43375.0,0.58821373]
[1642263573848,0.26314509,43376.0,43375.0,0.58821373]
[1642263574250,0.26314509,43376.0,43374.0,0.58821373]
[1642263574450,0.1699874,43375.0,43374.0,0.58821373]
[1642263574655,0.26314509,43376.0,43374.0,0.58821373]
[1642263574893,0.16772251,43375.0,43374.0,0.58828249]
[1642263575296,0.16772251,43375.0,43374.0,6.876e-05]
[1642263575592,0.26314509,43376.0,43374.0,6.876e-05]
[1642263575994,0.16793821,43375.0,43374.0,6.876e-05]
[1642263576593,0.26314509,43376.0,43373.0,0.54550073]
[1642263576796,0.26314509,43376.0,43374.0,0.54550073]
[1642263576993,0.16717135,43375.0,43374.0,0.54550073]
[1642263577793,0.26314509,43376.0,43374.0,0.54550073]
[1642263578843,0.26314509,43376.0,43373.0,0.00093133]
[1642263579145,0.26314509,43376.0,43373.0,0.6885017]
[1642263579342,0.26314509,43376.0,43373.0,0.68757037]
[1642263579545,0.26314509,43376.0,43374.0,0.68757037]
[1642263579847,0.1980789,43380.0,43374.0,0.68757037]
[1642263580243,8.595e-05,43379.0,43374.0,0.68757037]
[1642263580646,6.876e-05,43378.0,43374.0,0.68757037]
[1642263580845,0.31177597,43376.0,43374.0,0.68850402]
[1642263581645,0.31177597,43376.0,43374.0,0.64390402]
[1642263581845,0.16813416,43375.0,43374.0,0.64297037]
[1642263582046,0.31177597,43376.0,43374.0,0.64297037]
[1642263582047,8.595e-05,43379.0,43374.0,0.64297037]
[1642263582247,0.19891413,43380.0,43373.0,0.00093366]
[1642263582492,0.19891413,43380.0,43375.0,6.876e-05]
[1642263583090,0.30793362,43376.0,43375.0,0.00100239]
[1642263583292,0.30793362,43376.0,43375.0,0.00093363]
[1642263583490,0.30793362,43376.0,43374.0,0.98420944]
[1642263583889,0.30793362,43376.0,43371.0,0.00013752]
[1642263584090,0.26321233,43373.0,43371.0,0.00013752]
[1642263584290,0.26321233,43373.0,43367.0,0.00020628]
[1642263585691,0.26321233,43373.0,43369.0,0.59182466]
[1642263585991,0.26321233,43373.0,43370.0,0.00015471]
[1642263586658,0.26321233,43373.0,43369.0,0.54717937]
[1642263587362,0.0012587,43370.0,43369.0,0.54717937]
[1642263587559,0.0012587,43370.0,43366.0,0.00994]
[1642263588057,0.00122459,43367.0,43366.0,0.01087375]
[1642263588258,0.94752459,43367.0,43366.0,0.01087375]
[1642263588458,1.32254259,43367.0,43366.0,0.01094251]
[1642263589057,1.32254259,43367.0,43366.0,0.01000876]
[1642263589258,0.42254259,43367.0,43366.0,0.01000876]
[1642263589460,1.62463167,43367.0,43366.0,0.01000876]
[1642263589659,0.72463167,43367.0,43366.0,0.01000876]
[1642263591697,0.375018,43366.0,43358.0,0.65684594]
[1642263591900,0.14752459,43367.0,43358.0,0.65684594]
[1642263592098,0.04752459,43367.0,43359.0,0.00012033]
[1642263592398,0.15787903,43367.0,43359.0,0.00012033]
[1642263592597,0.04752459,43367.0,43359.0,0.00012033]
[1642263592801,0.29255905,43362.0,43359.0,0.00012033]
[1642263594140,0.27172503,43364.0,43359.0,0.00012033]
[1642263595940,0.27172503,43364.0,43355.0,0.00018909]
[1642263596141,0.18123667,43363.0,43355.0,0.00018909]
[1642263596340,0.18123667,43363.0,43357.0,0.00093385]
[1642263596539,0.18123667,43363.0,43355.0,0.00018909]
[1642263596740,0.18123667,43363.0,43354.0,0.2817]
[1642263596942,0.00012033,43362.0,43354.0,0.2817]
[1642263597393,0.00010314,43361.0,43354.0,0.2817]
[1642263597792,8.595e-05,43360.0,43354.0,0.2817]
[1642263598195,6.876e-05,43359.0,43353.0,0.4153]
[1642263598696,8.595e-05,43360.0,43353.0,0.4153]
[1642263599097,6.876e-05,43359.0,43353.0,0.4153]
[1642263600100,0.04636876,43359.0,43348.0,0.3016]
[1642263600299,0.00125878,43354.0,43344.0,0.4153]
[1642263600505,0.29758735,43352.0,43349.0,0.00010315]
[1642263600700,0.16918095,43351.0,43349.0,0.00010315]
[1642263600898,0.29758735,43352.0,43349.0,0.00010315]
[1642263601144,0.46774489,43352.0,43349.0,0.00010315]
[1642263601547,0.46774489,43352.0,43344.0,0.37163711]
[1642263601745,0.29758735,43352.0,43343.0,0.4515]
[1642263601943,0.29758735,43352.0,43345.0,6.876e-05]
[1642263602345,0.16540296,43351.0,43345.0,6.876e-05]
[1642263602843,0.16597857,43351.0,43345.0,6.876e-05]
[1642263603052,0.29758735,43352.0,43345.0,6.876e-05]
[1642263603244,0.28346079,43350.0,43345.0,6.876e-05]
[1642263603645,0.29758735,43352.0,43345.0,6.876e-05]
[1642263604344,0.3051236,43357.0,43345.0,6.876e-05]
[1642263604546,0.1,43357.0,43344.0,8.595e-05]
[1642263604745,0.31836494,43354.0,43344.0,8.595e-05]
[1642263604989,0.00042297,43355.0,43344.0,8.595e-05]
[1642263605190,6.876e-05,43353.0,43344.0,8.595e-05]
[1642263605390,0.24486644,43351.0,43344.0,8.595e-05]
[1642263605991,0.24486644,43351.0,43345.0,0.00093399]
[1642263606592,0.24486644,43351.0,43341.0,0.13080097]
[1642263606792,0.00010314,43350.0,43339.0,0.45395464]
[1642263606992,0.00010314,43350.0,43339.0,0.29446474]
[1642263607192,8.595e-05,43349.0,43339.0,0.29446474]
[1642263607392,8.595e-05,43349.0,43339.0,0.45284233]
[1642263607592,0.24486644,43351.0,43339.0,0.45284233]
[1642263607593,6.876e-05,43348.0,43339.0,0.45284233]
[1642263607894,0.00010314,43350.0,43340.0,0.5164]
[1642263608198,8.595e-05,43349.0,43340.0,0.5164]
[1642263608641,6.876e-05,43348.0,43340.0,0.5164]
[1642263608845,6.876e-05,43348.0,43342.0,0.057667]
[1642263609043,0.00010314,43350.0,43342.0,0.057667]
[1642263609245,0.00010314,43350.0,43344.0,0.78726727]
[1642263609444,8.595e-05,43349.0,43344.0,0.78726727]
[1642263609643,0.00051126,43349.0,43344.0,0.78726727]
[1642263609843,6.876e-05,43348.0,43344.0,0.78726727]
[1642263610144,6.876e-05,43348.0,43345.0,0.98673828]
[1642263611347,6.876e-05,43348.0,43344.0,0.98673828]
[1642263611747,6.876e-05,43348.0,43344.0,0.94193828]
[1642263612896,0.00120902,43344.0,43342.0,0.78690101]
[1642263613093,0.05958,43344.0,43342.0,0.78690101]
[1642263613793,0.31194003,43343.0,43340.0,0.4164]
[1642263614892,0.41194003,43343.0,43340.0,0.4164]
[1642263615104,0.17056854,43342.0,43340.0,0.4164]
[1642263616548,0.41194003,43343.0,43340.0,0.4164]
[1642263616749,0.41194003,43343.0,43340.0,0.3717]
[1642263619455,0.00127738,43341.0,43339.0,0.001877]
[1642263619885,0.00127738,43341.0,43340.0,6.876e-05]
[1642263621888,1.2,43341.0,43331.0,0.3043]
[1642263622288,1.2,43341.0,43332.0,0.00013752]
[1642263622687,1.3,43341.0,43332.0,0.00013752]
[1642263623493,1.3,43341.0,43332.0,0.77705865]
[1642263623938,1.2,43341.0,43334.0,0.00050642]
[1642263624439,1.2,43341.0,43335.0,8.595e-05]
[1642263625240,1.2,43341.0,43336.0,0.00050641]
[1642263625440,0.00122436,43339.0,43336.0,0.00050641]
[1642263626241,0.00122436,43339.0,43333.0,0.00012033]
[1642263626439,0.00122436,43339.0,43335.0,0.0009341]
[1642263626840,0.00122436,43339.0,43331.0,0.26065443]
[1642263627040,8.595e-05,43338.0,43331.0,0.26065443]
[1642263627241,0.63562274,43337.0,43330.0,0.042]
[1642263627494,0.6356915,43337.0,43330.0,0.042]
[1642263627693,0.7356915,43337.0,43330.0,0.042]
[1642263627893,0.7356915,43337.0,43332.0,0.77639556]
[1642263628699,0.6356915,43337.0,43332.0,0.77689993]
[1642263628896,0.7356915,43337.0,43332.0,0.00050437]
[1642263629598,0.7356915,43337.0,43336.0,0.59222042]
[1642263629997,0.73696945,43337.0,43336.0,0.59222042]
[1642263630399,0.79467405,43337.0,43336.0,0.59222042]
[1642263630599,1.16969205,43337.0,43334.0,0.59222042]
[1642263630799,0.375018,43336.0,43334.0,0.59222042]
[1642263630997,0.00122392,43335.0,43334.0,0.59222042]
[1642263631645,0.00122392,43335.0,43334.0,0.54752042]
[1642263632447,0.00122392,43335.0,43332.0,0.00093414]
[1642263633445,0.00122392,43335.0,43331.0,0.54752042]
[1642263633645,0.24953783,43335.0,43331.0,0.54845457]
[1642263633850,0.00122392,43335.0,43331.0,0.54845457]
[1642263634748,0.00122392,43335.0,43331.0,0.54345458]
[1642263635598,6.876e-05,43337.0,43331.0,0.54345458]
[1642263635798,6.876e-05,43337.0,43332.0,0.54252042]
[1642263635997,6.876e-05,43337.0,43332.0,0.54345456]
[1642263636399,6.876e-05,43337.0,43332.0,0.84106833]
[1642263636598,6.876e-05,43337.0,43334.0,0.54252042]
[1642263636896,6.876e-05,43337.0,43334.0,0.49792042]
[1642263640040,6.876e-05,43337.0,43335.0,0.49792042]
[1642263640842,6.876e-05,43337.0,43336.0,0.49792042]
[1642263641841,6.876e-05,43337.0,43336.0,0.45322042]
[1642263642794,6.876e-05,43337.0,43335.0,0.88513763]
[1642263642991,6.876e-05,43337.0,43336.0,0.77059488]
[1642263643193,6.876e-05,43337.0,43336.0,0.59222975]
[1642263644996,6.876e-05,43337.0,43335.0,0.02202408]
[1642263645195,6.876e-05,43337.0,43335.0,0.71294791]
[1642263646841,6.876e-05,43337.0,43335.0,0.66834791]
[1642263647743,6.876e-05,43337.0,43335.0,1.34948141]
[1642263648344,6.876e-05,43337.0,43336.0,0.59224069]
[1642263649343,6.876e-05,43337.0,43336.0,0.66834791]
[1642263650194,6.876e-05,43337.0,43335.0,0.59224883]
[1642263650398,0.05876,43336.0,43335.0,0.59224883]
[1642263651194,0.05876,43336.0,43333.0,0.59318298]
[1642263651396,0.05876,43336.0,43333.0,0.59224883]
[1642263651799,0.05876,43336.0,43333.0,0.54764883]
[1642263652398,0.05876,43336.0,43334.0,0.54764883]
[1642263653198,0.05876,43336.0,43333.0,0.00093413]
[1642263653199,0.05876,43336.0,43333.0,0.54858296]
[1642263653850,0.05876,43336.0,43333.0,0.54764883]
[1642263654150,0.05876,43336.0,43334.0,0.54764883]
[1642263655550,6.876e-05,43337.0,43334.0,0.54764883]
[1642263656749,6.876e-05,43337.0,43334.0,0.50274883]
[1642263658294,6.876e-05,43337.0,43333.0,0.00093414]
[1642263658692,6.876e-05,43337.0,43332.0,0.50274883]
[1642263658896,6.876e-05,43337.0,43333.0,0.00093413]
[1642263659893,6.876e-05,43337.0,43331.0,0.50274883]
[1642263660094,6.876e-05,43337.0,43333.0,0.00093413]
[1642263661747,0.11653236,43337.0,43331.0,0.45908296]
[1642263661943,0.05882876,43337.0,43331.0,0.45908296]
[1642263663746,0.00122452,43333.0,43331.0,0.45908296]
[1642263664544,0.00122452,43333.0,43330.0,0.45908296]
[1642263664993,0.05876,43331.0,43330.0,0.45908296]
[1642263665193,0.05876,43331.0,43329.0,0.45908296]
[1642263665397,0.05876,43331.0,43328.0,0.0016336]
[1642263665794,0.05876,43331.0,43329.0,6.876e-05]
[1642263666795,0.05876,43331.0,43325.0,0.38714065]
[1642263666995,0.05876,43331.0,43323.0,0.28958768]
[1642263667397,0.05876,43331.0,43324.0,8.595e-05]
[1642263668195,0.05876,43331.0,43322.0,0.00012033]
[1642263669246,0.05876,43331.0,43322.0,0.16822893]
[1642263669447,0.05876,43331.0,43322.0,0.00012033]
[1642263669648,0.05876,43331.0,43323.0,0.00010314]
[1642263669847,0.05876,43331.0,43322.0,0.00012033]
[1642263670848,0.05876,43331.0,43324.0,0.00093423]
[1642263671249,0.44403715,43331.0,43325.0,6.876e-05]
[1642263671450,0.00121045,43328.0,43325.0,6.876e-05]
[1642263671651,0.05876,43326.0,43325.0,6.876e-05]
[1642263671850,0.05876,43326.0,43321.0,0.40570299]
[1642263672051,0.05876,43326.0,43324.0,0.00093423]
[1642263673093,0.05876,43326.0,43320.0,0.4153]
[1642263673295,0.00121626,43322.0,43320.0,0.4153]
[1642263673495,0.00121626,43322.0,43321.0,6.876e-05]
[1642263674095,0.05876,43326.0,43321.0,6.876e-05]
[1642263675697,0.05876,43326.0,43321.0,0.00100302]
[1642263676547,0.05876,43330.0,43321.0,6.876e-05]
[1642263676748,0.05876,43327.0,43320.0,0.37170302]
[1642263676949,0.05876,43325.0,43317.0,0.5799]
[1642263679247,0.05920138,43325.0,43317.0,0.5799]
[1642263679748,0.05876,43321.0,43317.0,0.5799]
[1642263680404,0.05876,43321.0,43317.0,0.57583432]
[1642263680602,0.05876,43321.0,43317.0,0.00093432]
[1642263681399,0.05876,43321.0,43316.0,9.995]
[1642263681600,0.05876,43321.0,43317.0,0.00093432]
[1642263681801,0.05876,43321.0,43316.0,9.95110308]
[1642263682201,0.2182856,43321.0,43316.0,9.95110308]
[1642263682401,0.05876,43321.0,43316.0,9.95110308]
[1642263683403,0.25725638,43319.0,43316.0,9.95110308]
[1642263683645,0.05876,43318.0,43316.0,9.95110308]
[1642263684650,0.36001741,43318.0,43316.0,9.95110308]
[1642263686852,0.36001741,43318.0,43316.0,9.90630308]
[1642263688494,0.35686041,43318.0,43316.0,9.90630308]
[1642263689595,0.00124299,43317.0,43316.0,9.90630308]
[1642263690395,0.35686041,43318.0,43316.0,9.90630308]
[1642263691245,0.00126293,43317.0,43316.0,9.90630308]
[1642263692047,0.35686041,43318.0,43316.0,9.86130308]
[1642263693147,0.62821917,43318.0,43316.0,9.86130308]
[1642263693548,0.35686041,43318.0,43316.0,9.86130308]
[1642263694551,0.61765831,43318.0,43316.0,9.86130308]
[1642263695193,0.20684086,43317.0,43316.0,9.86130308]
[1642263695498,0.20865103,43317.0,43316.0,9.86130308]
[1642263695999,0.05188324,43317.0,43316.0,9.86130308]
[1642263696895,0.05188324,43317.0,43316.0,9.81670308]
[1642263698649,0.20876614,43317.0,43316.0,9.81670308]
[1642263698946,0.050603,43317.0,43316.0,9.81670308]
[1642263699547,0.20636224,43317.0,43316.0,9.81670308]
[1642263699949,0.050603,43317.0,43316.0,9.81670308]
[1642263701146,0.050603,43317.0,43316.0,9.81612828]
[1642263701948,0.050603,43317.0,43316.0,9.77142828]
[1642263703301,0.20544037,43317.0,43316.0,9.77142828]
[1642263703500,0.050603,43317.0,43316.0,9.77142828]
[1642263704302,0.050603,43320.0,43316.0,9.77142828]
[1642263706146,0.050603,43320.0,43318.0,0.44790284]
[1642263706344,0.050603,43320.0,43319.0,2.41606687]
[1642263706547,0.050603,43320.0,43319.0,2.2463]
[1642263706943,0.050603,43320.0,43319.0,2.2015]
[1642263707346,0.050603,43320.0,43319.0,0.0463]
[1642263708145,0.050603,43320.0,43317.0,0.00988897]
[1642263710198,0.43710872,43321.0,43317.0,0.00988897]
[1642263710199,0.34836307,43318.0,43317.0,0.00988897]
[1642263710396,0.34836307,43318.0,43316.0,9.77131725]
[1642263710796,0.050603,43318.0,43316.0,9.77131725]
[1642263711800,0.37150138,43318.0,43316.0,9.77131725]
[1642263711999,0.37150138,43318.0,43316.0,9.72621725]
[1642263712796,0.050603,43318.0,43316.0,9.72621725]
[1642263715248,0.050603,43320.0,43316.0,9.72621725]
[1642263717148,0.050603,43320.0,43316.0,9.68151725]
[1642263717799,0.04744615,43320.0,43316.0,9.68151725]
[1642263720206,0.04744615,43319.0,43316.0,9.68151725]
[1642263722160,0.04744615,43319.0,43316.0,9.63681725]
[1642263723557,0.04744615,43319.0,43317.0,0.16649161]
[1642263723757,0.04744615,43319.0,43316.0,9.63681725]
[1642263724058,0.04744615,43319.0,43317.0,0.16272265]
[1642263724357,0.04744615,43319.0,43316.0,9.63681725]
[1642263724761,0.04744615,43319.0,43317.0,0.16244013]
[1642263725204,0.04744615,43318.0,43317.0,0.16244013]
[1642263725799,0.04744615,43318.0,43316.0,9.63681725]
[1642263726400,0.04744615,43318.0,43317.0,1.0]
[1642263727202,0.04744615,43318.0,43317.0,0.9552]
[1642263728001,0.04744615,43318.0,43317.0,2.5552]
[1642263729446,0.04744615,43318.0,43317.0,0.9552]
[1642263730052,0.04744615,43318.0,43317.0,1.3552]
[1642263730950,0.04744615,43318.0,43317.0,2.3502]
[1642263731549,0.04744615,43318.0,43317.0,1.3452]
[1642263731949,0.04744615,43318.0,43317.0,2.0452]
[1642263732150,0.04744615,43318.0,43317.0,2.0468]
[1642263733103,0.04744615,43318.0,43317.0,1.3468]
[1642263734904,0.04744615,43318.0,43317.0,2.0468]
[1642263735307,0.00091176,43321.0,43317.0,2.0468]
[1642263735504,6.876e-05,43321.0,43318.0,0.16230719]
[1642263735708,0.00091176,43321.0,43318.0,0.16230719]
[1642263736450,0.00091176,43321.0,43320.0,2.20929344]
[1642263736652,0.00091176,43321.0,43320.0,3.30559344]
[1642263736653,6.876e-05,43321.0,43320.0,3.30559344]
[1642263737250,6.876e-05,43321.0,43320.0,3.26089344]
[1642263737451,6.876e-05,43321.0,43320.0,3.36089344]
[1642263738451,6.876e-05,43321.0,43320.0,3.69754503]
[1642263741099,6.876e-05,43321.0,43320.0,3.79754503]
[1642263741499,6.876e-05,43321.0,43320.0,3.69754503]
[1642263741698,6.876e-05,43321.0,43320.0,2.64754503]
[1642263741897,6.876e-05,43321.0,43320.0,0.48295159]
[1642263742097,0.04744615,43334.0,43321.0,2.2553]
[1642263742297,0.04744615,43334.0,43322.0,0.0463]
[1642263742499,0.00020628,43333.0,43323.0,0.16236154]
[1642263742798,0.00018909,43332.0,43324.0,0.0463]
[1642263743199,0.0001719,43331.0,43325.0,0.26626195]
[1642263743398,0.0001719,43331.0,43326.0,0.0463]
[1642263743649,0.00015471,43330.0,43326.0,0.0463]
[1642263744050,0.00013752,43329.0,43326.0,0.0463]
[1642263744449,0.00012033,43328.0,43326.0,0.0463]
[1642263744852,0.04744615,43334.0,43326.0,0.0463]
[1642263744853,0.00010314,43327.0,43326.0,0.0463]
[1642263745751,0.00010314,43327.0,43326.0,0.8463]
[1642263747252,0.00010314,43327.0,43326.0,0.8016]
[1642263747700,0.00010314,43327.0,43326.0,0.6016]
[1642263750102,0.00010314,43327.0,43326.0,0.0016]
[1642263750707,0.00010314,43327.0,43326.0,0.8016]
[1642263752151,0.00010314,43327.0,43326.0,0.7569]
[1642263752552,0.00010314,43327.0,43323.0,0.00532011]
[1642263752951,8.595e-05,43326.0,43323.0,0.00532011]
[1642263753255,6.876e-05,43325.0,43323.0,0.06301311]
[1642263753454,6.876e-05,43325.0,43323.0,0.00532011]
[1642263753651,0.00083428,43326.0,43323.0,0.00532011]
[1642263754052,6.876e-05,43325.0,43323.0,0.00532011]
[1642263757299,6.876e-05,43325.0,43321.0,0.24782011]
[1642263758503,0.00091432,43325.0,43321.0,0.24782011]
[1642263759550,6.876e-05,43325.0,43321.0,0.24782011]
[1642263759753,0.00091432,43325.0,43321.0,0.24782011]
[1642263760653,6.876e-05,43325.0,43321.0,0.24782011]
[1642263760854,0.00091432,43325.0,43321.0,0.24782011]
[1642263761857,6.876e-05,43325.0,43321.0,0.24782011]
[1642263762056,0.00091612,43325.0,43321.0,0.24782011]
[1642263762255,0.00091612,43325.0,43321.0,0.20292011]
[1642263763100,0.04744615,43323.0,43321.0,0.20292011]
[1642263763301,0.04744615,43323.0,43318.0,0.00077709]
[1642263763499,0.3724481,43323.0,43318.0,0.00077709]
[1642263764102,0.04744615,43323.0,43318.0,0.00077709]
[1642263764302,0.04744615,43323.0,43316.0,10.05211725]
[1642263764502,0.04744615,43323.0,43318.0,0.0007754]
[1642263765504,0.04744615,43323.0,43316.0,10.05211725]
[1642263765707,0.04744615,43323.0,43318.0,0.0007754]
[1642263766748,0.04744615,43323.0,43316.0,10.05211725]
[1642263766950,0.04744615,43323.0,43318.0,0.0007754]
[1642263767354,0.04744615,43323.0,43316.0,10.05211725]
[1642263768150,0.04744615,43322.0,43316.0,10.05252457]
[1642263769153,0.04744615,43322.0,43316.0,10.05211725]
[1642263769352,0.04829506,43322.0,43316.0,10.05289148]
[1642263771421,0.04744615,43322.0,43316.0,10.05211725]
[1642263771625,0.04829326,43322.0,43316.0,10.05288624]
[1642263772223,0.04829326,43322.0,43316.0,10.00828624]
[1642263772623,0.04744615,43322.0,43316.0,10.00751725]
[1642263772823,0.04829326,43322.0,43316.0,10.00828624]
[1642263773225,0.00084711,43322.0,43316.0,10.00828624]